bitfinex-derivatives/quotes_ETHF0:USTF0_20250708
["timestamp","ask_amount","ask_price","bid_price","bid_amount"]
[1751980451532,7.09157479,2580.8,2580.7,3.73747]
[1751980451928,3.02393369,2580.8,2580.7,3.73747]
[1751980452142,6.45677479,2580.8,2580.7,3.73747]
[1751980452936,0.77484,2580.8,2580.7,3.73747]
[1751980453131,1.40964,2580.8,2580.7,2.40237]
[1751980453340,0.77484,2580.8,2580.7,2.40237]
[1751980453837,0.77484,2580.8,2580.5,5.90682]
[1751980453838,0.6348,2580.8,2580.5,3.2078]
[1751980454032,2.12194,2580.8,2580.7,0.6553]
[1751980454233,4.80355355,2580.8,2580.7,0.6553]
[1751980455038,0.7749,2580.6,2580.5,3.98271]
[1751980455245,1.4097,2580.6,2580.5,1.43021]
[1751980455542,0.7749,2580.6,2580.5,1.43021]
[1751980455841,3.45651355,2580.6,2580.5,1.43021]
[1751980456034,4.09131355,2580.6,2580.5,2.40241]
[1751980457545,4.09131355,2580.6,2580.5,0.77491]
[1751980457940,4.09131355,2580.6,2580.5,1.43021]
[1751980458341,1.4097,2580.6,2580.5,1.43021]
[1751980458544,0.7749,2580.7,2580.6,0.7749]
[1751980459044,4.90164568,2580.7,2580.6,0.6553]
[1751980459247,5.53644568,2580.7,2580.6,0.6553]
[1751980459744,0.7749,2580.6,2580.5,6.66325951]
[1751980460048,1.4097,2580.6,2580.5,9.06567951]
[1751980461547,1.4097,2580.6,2580.5,8.09347951]
[1751980461744,1.4097,2580.6,2580.5,4.88567951]
[1751980461947,0.7749,2580.6,2580.5,4.23037951]
[1751980462343,1.4325,2580.6,2580.5,4.87037951]
[1751980462647,0.7749,2580.6,2580.5,4.23037951]
[1751980462842,1.4325,2580.6,2580.5,5.84757951]
[1751980463044,0.7749,2580.6,2580.5,5.84757951]
[1751980463744,1.4325,2580.6,2580.5,5.84757951]
[1751980466451,1.4325,2580.6,2580.5,5.07265951]
[1751980467152,1.4325,2580.6,2580.5,5.84758951]
[1751980467648,0.7749,2580.6,2580.5,5.84758951]
[1751980468154,1.4325,2580.6,2580.5,5.84758951]
[1751980468455,0.7749,2580.6,2580.5,5.84758951]
[1751980468654,1.4325,2580.6,2580.5,5.84758951]
[1751980468958,1.4325,2580.6,2580.5,4.87038951]
[1751980469246,1.4325,2580.6,2580.5,5.84758951]
[1751980470053,1.4325,2580.6,2580.5,4.87038951]
[1751980470653,1.4325,2580.6,2580.5,5.84758951]
[1751980471452,0.6576,2580.6,2580.5,5.84758951]
[1751980471650,0.7748,2581.0,2580.6,1.93725]
[1751980471856,3.45640355,2581.1,2581.0,0.77478]
[1751980472051,4.90164562,2581.1,2581.0,2.39198]
[1751980473157,5.55924562,2581.1,2581.0,2.39198]
[1751980474457,4.11400355,2581.1,2581.0,2.39198]
[1751980475857,4.11400355,2581.1,2581.0,4.70310041]
[1751980476452,3.4328411,2582.0,2581.0,131.53154751]
[1751980476652,3.4328411,2582.7,2581.9,8.19803893]
[1751980476851,2.68161355,2582.5,2582.4,2.30767747]
[1751980477056,0.77436,2582.4,2582.3,3.46293808]
[1751980477351,0.7744,2582.3,2582.1,5.51030822]
[1751980477552,3.45603355,2582.2,2582.1,3.2078]
[1751980477758,2.68161355,2582.2,2582.1,3.98225]
[1751980479950,0.7009,2582.3,2582.2,0.77442]
[1751980480157,4.04011355,2582.3,2582.2,0.77442]
[1751980481155,1.3585,2582.3,2582.2,0.77442]
[1751980481457,0.6576,2582.3,2582.2,0.77442]
[1751980481761,3.2078,2582.5,2582.4,0.77436]
[1751980482060,0.6576,2582.5,2582.4,0.64]
[1751980482260,29.37261355,2582.7,2582.6,0.7743]
[1751980482559,30.03021355,2582.7,2582.6,1.4143]
[1751980482750,3.33921355,2582.7,2582.6,1.4143]
[1751980482955,0.6576,2582.7,2582.6,2.3915]
[1751980483858,0.6576,2582.7,2582.6,1.4143]
[1751980484353,12.57411355,2582.7,2581.7,2.91362]
[1751980484553,3.2078,2582.4,2581.7,0.9772]
[1751980484759,2.68161355,2582.1,2581.9,0.77449]
[1751980484959,3.45606355,2582.1,2582.0,0.64]
[1751980485558,0.77445,2582.1,2582.0,0.64]
[1751980486158,3.45606355,2582.1,2582.0,0.64]
[1751980486355,0.77457,2581.7,2581.6,3.2078]
[1751980486659,3.45618355,2581.7,2581.6,0.64]
[1751980487862,0.77463,2581.5,2581.4,1.48354]
[1751980488362,3.45623355,2581.6,2581.5,0.77463]
[1751980488562,4.11383355,2581.6,2581.5,0.77463]
[1751980488760,0.77462,2581.6,2581.5,0.77463]
[1751980488960,0.77463,2581.5,2581.4,2.12354]
[1751980489161,0.77461,2581.6,2581.5,0.77461]
[1751980489559,0.77463,2581.5,2581.4,0.7089]
[1751980489763,1.43223,2581.5,2581.4,1.3489]
[1751980490064,1.43223,2581.5,2581.4,2.12356]
[1751980490271,0.77463,2581.5,2581.4,2.12356]
[1751980490456,1.44163,2581.5,2581.4,2.3261]
[1751980490861,1.44163,2581.5,2581.4,1.3489]
[1751980491867,1.44163,2581.5,2581.4,2.12356]
[1751980492062,0.77463,2581.5,2581.4,0.7089]
[1751980492566,0.77463,2581.5,2581.4,1.3666]
[1751980492966,1.44163,2581.5,2581.4,1.3666]
[1751980493168,0.77463,2581.5,2581.4,1.3666]
[1751980493365,1.44163,2581.5,2581.4,1.3666]
[1751980493868,1.44163,2581.5,2581.4,2.14126]
[1751980495771,0.7337,2581.8,2581.4,2.14126]
[1751980495772,0.7337,2581.8,2581.4,2.341]
[1751980496071,0.77461,2581.6,2581.5,1.74899]
[1751980496369,0.77461,2581.6,2581.5,2.40669]
[1751980497067,0.7337,2581.8,2581.5,2.40669]
[1751980497271,3.98232,2581.9,2581.8,0.77454]
[1751980497471,4.64932,2581.9,2581.8,1.43224]
[1751980497672,0.7745,2582.0,2581.9,0.77451]
[1751980497872,0.7745,2582.0,2581.9,1.43221]
[1751980498076,1.4415,2582.0,2581.9,1.43221]
[1751980498273,0.7745,2582.0,2581.9,1.43221]
[1751980498573,0.667,2582.0,2581.9,1.43221]
[1751980498774,0.667,2582.0,2581.9,2.40661]
[1751980499173,3.2078,2582.2,2582.1,0.77445]
[1751980499371,3.2078,2582.2,2582.1,2.40655]
[1751980499677,3.8748,2582.2,2582.1,1.43215]
[1751980499876,3.8748,2582.2,2582.0,1.48766]
[1751980499877,0.77445,2582.1,2582.0,1.48766]
[1751980500176,3.98224,2582.2,2582.1,0.77445]
[1751980500378,4.64924,2582.2,2582.1,1.43215]
[1751980501679,4.64924,2582.2,2582.1,0.6577]
[1751980501879,0.7745,2582.0,2581.9,0.77449]
[1751980502375,1.4415,2582.0,2581.9,0.77449]
[1751980502679,0.77453,2581.9,2581.8,0.77452]
[1751980502874,1.5099,2582.0,2581.9,0.77451]
[1751980503075,2.1769,2582.0,2581.9,0.77451]
[1751980503476,1.4024,2582.0,2581.9,0.77451]
[1751980503680,0.667,2582.0,2581.9,0.77451]
[1751980503980,0.667,2582.0,2581.9,2.86421]
[1751980505277,0.77442,2582.2,2582.1,0.77445]
[1751980505581,0.667,2582.2,2582.1,0.77445]
[1751980506783,1.44142,2582.2,2582.1,0.77445]
[1751980506983,1.44142,2582.2,2582.1,2.40655]
[1751980507579,1.44142,2582.2,2582.1,1.43215]
[1751980509891,0.77445,2582.1,2582.0,0.77446]
[1751980510091,0.77448,2582.0,2581.9,3.98229]
[1751980510383,1.44148,2582.0,2581.9,3.98231]
[1751980510784,6.4582564,2582.0,2581.9,0.77451]
[1751980511191,0.77454,2581.9,2581.8,0.77452]
[1751980511386,0.7746,2581.7,2581.6,0.77458]
[1751980511586,1.4416,2581.7,2581.6,0.77458]
[1751980511790,1.4416,2581.7,2581.6,1.43228]
[1751980511988,0.7746,2581.7,2581.6,0.77458]
[1751980512189,1.4416,2581.7,2581.6,1.43228]
[1751980512491,1.4416,2581.7,2581.6,0.77458]
[1751980512885,4.4031764,2581.7,2581.4,0.77464]
[1751980513093,2.6893764,2581.5,2581.2,4.7418]
[1751980513289,4.1310664,2581.3,2581.2,4.64022]
[1751980513489,4.1310664,2581.3,2581.2,3.98252]
[1751980513690,4.1310664,2581.3,2581.2,4.64022]
[1751980514592,0.667,2581.3,2581.2,4.64022]
[1751980514788,1.52008,2581.4,2581.3,0.77469]
[1751980515187,2.18708,2581.4,2581.3,1.43239]
[1751980516189,1.52008,2581.4,2581.3,1.43239]
[1751980516691,2.18708,2581.4,2581.3,1.43239]
[1751980517490,0.667,2581.4,2581.3,2.40679]
[1751980518091,1.44166,2581.4,2581.3,3.17919]
[1751980519090,0.77469,2581.3,2581.2,3.2078]
[1751980519288,0.77469,2581.3,2581.2,3.8655]
[1751980519289,1.44169,2581.3,2581.2,3.8655]
[1751980519489,0.77469,2581.3,2581.2,3.8655]
[1751980519692,1.44169,2581.3,2581.2,3.8655]
[1751980520399,1.44169,2581.3,2581.2,4.64022]
[1751980520696,4.1310664,2581.3,2581.2,3.8413]
[1751980521892,4.1310664,2581.3,2581.2,4.61602]
[1751980522096,3.4640664,2581.3,2581.2,3.98252]
[1751980522790,4.1137664,2581.3,2581.2,4.61602]
[1751980524297,4.1137664,2581.3,2581.2,3.8413]
[1751980524497,0.77475,2581.1,2581.0,1.54716]
[1751980524698,0.77478,2581.0,2580.9,3.2078]
[1751980524899,2.20208,2581.0,2580.9,3.8413]
[1751980525096,2.20208,2581.0,2580.9,3.2078]
[1751980525498,2.20208,2581.0,2580.9,3.8413]
[1751980525998,1.55238,2581.0,2580.9,4.61611]
[1751980526194,2.20208,2581.0,2580.9,4.61611]
[1751980526392,2.20208,2581.0,2580.9,3.8413]
[1751980527696,0.77484,2580.8,2580.7,0.7764]
[1751980527999,4.1139164,2580.8,2580.7,1.40837]
[1751980528199,4.1139164,2580.8,2580.7,0.6335]
[1751980528395,0.77483,2580.9,2580.8,0.77484]
[1751980528702,0.77483,2580.9,2580.8,1.40834]
[1751980529508,1.42453,2580.9,2580.8,1.40834]
[1751980530899,0.77487,2580.7,2580.6,3.2078]
[1751980531106,0.77505,2580.1,2580.0,0.7085]
[1751980531305,3.3390764,2580.1,2579.8,3.98293]
[1751980531508,2.6893764,2579.9,2579.8,3.98293]
[1751980531806,0.77511,2579.9,2579.8,7.5138764]
[1751980532012,0.77511,2579.9,2579.8,7.9946164]
[1751980532207,0.77511,2579.9,2579.8,8.8361764]
[1751980532407,0.77511,2579.9,2579.8,7.2194764]
[1751980532610,0.77511,2579.9,2579.8,4.5301]
[1751980532805,1.42481,2579.9,2579.8,5.1636]
[1751980533006,0.77511,2579.9,2579.8,3.8413]
[1751980533210,1.42481,2579.9,2579.8,3.8413]
[1751980533410,1.42481,2579.9,2579.8,0.6335]
[1751980536507,0.77517,2579.7,2579.6,0.7085]
[1751980536811,4.1142464,2579.7,2579.6,1.342]
[1751980537110,4.1142464,2579.7,2579.6,0.7085]
[1751980537303,0.7752,2579.6,2579.5,3.2078]
[1751980537502,1.4249,2579.6,2579.5,3.8413]
[1751980540109,1.4249,2579.6,2579.5,3.2078]
[1751980540413,1.4249,2579.6,2579.5,3.8413]
[1751980542210,1.4249,2579.6,2579.5,4.8245]
[1751980542515,0.7752,2579.6,2579.5,3.2078]
[1751980542716,0.7752,2579.6,2579.5,4.8245]
[1751980542917,0.7752,2579.6,2579.5,6.1116]
[1751980543116,1.4249,2579.6,2579.5,6.1116]
[1751980543318,0.7752,2579.6,2579.5,6.1116]
[1751980544512,0.7752,2579.6,2579.5,6.88683]
[1751980545122,3.2078,2580.0,2579.5,6.1116]
[1751980545318,0.77518,2579.8,2579.7,0.77515]
[1751980545520,0.77518,2579.8,2579.7,2.9704]
[1751980546417,0.77513,2579.9,2579.7,2.9704]
[1751980546620,3.98289,2580.0,2579.9,0.77511]
[1751980546917,3.98289,2580.0,2579.9,2.39181]
[1751980547418,6.6722664,2580.0,2579.9,1.6167]
[1751980547618,7.3219664,2580.0,2579.9,1.6167]
[1751980548017,4.63259,2580.0,2579.9,1.6167]
[1751980548216,3.2078,2580.0,2579.9,2.39181]
[1751980548417,3.98288,2580.0,2579.9,3.70951]
[1751980548612,3.2078,2580.3,2580.2,0.77499]
[1751980548816,3.98281,2580.3,2580.2,2.39169]
[1751980549217,3.98281,2580.3,2580.2,3.17149]
[1751980549414,6.6721864,2580.3,2580.2,0.7798]
[1751980549619,7.3218864,2580.3,2580.2,0.7798]
[1751980549820,7.3218864,2580.3,2580.2,1.4133]
[1751980550020,7.3218864,2580.3,2580.2,0.7798]
[1751980550421,0.77511,2579.9,2579.8,1.75832]
[1751980550622,0.77511,2579.9,2579.8,3.14732]
[1751980551222,0.7751,2580.0,2579.9,0.77508]
[1751980551423,0.7751,2580.0,2579.9,5.35218]
[1751980552122,0.77506,2580.1,2580.0,0.77503]
[1751980552322,0.77506,2580.1,2580.0,3.76573]
[1751980552623,0.77506,2580.1,2580.0,2.14433]
[1751980552925,1.47106,2580.1,2580.0,3.76573]
[1751980553124,0.77506,2580.1,2580.0,2.14433]
[1751980553424,0.77506,2580.1,2580.0,3.76573]
[1751980553615,1.47106,2580.1,2580.0,3.76573]
[1751980557223,1.47106,2580.1,2579.9,3.2078]
[1751980557224,0.77508,2580.0,2579.9,3.2078]
[1751980557425,0.77511,2579.9,2579.8,1.52222]
[1751980557626,0.77511,2579.9,2579.8,2.16412]
[1751980558429,4.2045764,2580.0,2579.9,0.77511]
[1751980558729,4.9005764,2580.0,2579.9,0.77511]
[1751980559129,4.2045764,2580.0,2579.9,0.77511]
[1751980559425,4.9005764,2580.0,2579.9,0.77511]
[1751980560831,4.9005764,2580.0,2579.9,1.41701]
[1751980561031,4.2045764,2580.0,2579.9,1.41701]
[1751980561237,4.9005764,2580.0,2579.9,1.41701]
[1751980561835,0.696,2580.0,2579.9,1.41701]
[1751980562033,0.77508,2580.0,2579.9,2.39651]
[1751980562234,0.77506,2580.2,2580.1,0.77502]
[1751980562435,0.696,2580.2,2580.1,0.6419]
[1751980562629,0.77508,2580.1,2580.0,0.77505]
[1751980562834,0.77508,2580.1,2580.0,1.75455]
[1751980563029,0.77508,2580.1,2580.0,0.77505]
[1751980563236,70.1095528,2580.1,2578.7,3.2078]
[1751980563439,7.8354564,2579.3,2578.8,2.13742]
[1751980563635,6.6724664,2579.3,2579.2,0.6419]
[1751980563836,0.77541,2578.9,2578.8,2.13742]
[1751980564134,0.77532,2579.3,2579.2,0.77531]
[1751980564336,0.77532,2579.3,2579.2,3.2078]
[1751980564535,0.77532,2579.3,2579.2,3.98312]
[1751980564736,0.77532,2579.3,2579.2,6.06712]
[1751980565331,0.77525,2579.5,2579.4,0.77523]
[1751980565637,0.77527,2579.4,2579.3,2.13727]
[1751980565835,0.77527,2579.4,2579.3,2.39667]
[1751980566233,0.77527,2579.4,2579.3,0.77527]
[1751980566436,0.77527,2579.4,2579.3,2.39667]
[1751980566637,0.77527,2579.4,2579.3,1.6214]
[1751980567337,0.77527,2579.4,2579.3,2.39669]
[1751980568236,0.77527,2579.4,2579.3,1.6214]
[1751980568438,0.696,2579.4,2578.9,3.2078]
[1751980568636,0.696,2579.4,2579.1,0.77532]
[1751980568637,0.77535,2579.2,2579.1,0.77532]
[1751980568837,0.77535,2579.2,2579.1,2.39672]
[1751980569536,0.77535,2579.2,2579.1,1.6214]
[1751980570839,1.47135,2579.2,2579.1,1.6214]
[1751980571140,1.47135,2579.2,2579.1,0.6419]
[1751980571636,0.77535,2579.1,2579.0,0.7531]
[1751980571833,0.77535,2579.1,2579.0,3.14988]
[1751980572437,0.77535,2579.1,2579.0,1.52848]
[1751980572637,0.77535,2579.1,2579.0,3.14988]
[1751980573543,0.77535,2579.1,2579.0,1.395]
[1751980573842,1.47135,2579.1,2579.0,2.17038]
[1751980574039,0.77535,2579.1,2579.0,2.17038]
[1751980574237,1.47135,2579.1,2579.0,2.17038]
[1751980574744,1.47135,2579.1,2579.0,3.14988]
[1751980577742,0.77535,2579.1,2579.0,3.14988]
[1751980578953,0.77532,2579.3,2579.2,0.77528]
[1751980579141,0.77532,2579.3,2579.2,5.60448]
[1751980579543,1.47132,2579.3,2579.2,5.60448]
[1751980579740,0.77532,2579.3,2579.2,5.60448]
[1751980580841,1.46362,2579.3,2579.2,5.60448]
[1751980581246,1.46362,2579.3,2579.2,2.39668]
[1751980581750,1.46362,2579.3,2579.2,1.6214]
[1751980581942,0.77535,2579.2,2579.1,0.77531]
[1751980582247,1.46365,2579.2,2579.1,2.38731]
[1751980582546,1.46365,2579.2,2579.1,2.44741]
[1751980582747,0.77535,2579.2,2579.1,2.44741]
[1751980582937,0.77535,2579.2,2579.1,3.81501]
[1751980583747,1.46365,2579.2,2579.1,3.81501]
[1751980585648,0.77535,2579.2,2579.1,3.81501]
[1751980586348,1.46365,2579.2,2579.1,3.81501]
[1751980587748,1.46365,2579.2,2579.1,2.44741]
[1751980588150,0.77535,2579.2,2579.1,3.71861]
[1751980590656,0.77532,2579.3,2579.2,0.77528]
[1751980590850,0.77532,2579.3,2579.2,1.40778]
[1751980591253,1.46362,2579.3,2579.2,1.40778]
[1751980591452,0.77532,2579.3,2579.2,1.40778]
[1751980592051,1.46362,2579.3,2579.2,1.40778]
[1751980593255,1.46362,2579.3,2579.2,0.77528]
[1751980593553,1.46362,2579.3,2579.2,1.40778]
[1751980593855,0.77535,2579.2,2579.1,0.77532]
[1751980594257,1.46365,2579.2,2579.1,1.40782]
[1751980595057,1.46365,2579.2,2579.1,1.40785]
[1751980595356,1.46365,2579.2,2579.1,0.77535]
[1751980595552,1.46365,2579.2,2579.1,1.40785]
[1751980595857,0.77535,2579.1,2579.0,6.16410093]
[1751980596156,2.18195,2579.1,2579.0,2.16095]
[1751980596752,2.18195,2579.1,2579.0,1.3856]
[1751980596951,0.77538,2579.0,2578.9,8.61886093]
[1751980597257,1.46368,2579.0,2578.9,9.25136093]
[1751980597451,0.77538,2579.0,2578.9,4.61571]
[1751980597652,0.77533,2579.3,2579.2,0.77529]
[1751980597954,1.46363,2579.3,2579.2,4.10954219]
[1751980598250,1.46363,2579.3,2579.2,4.25236219]
[1751980598452,3.13579237,2579.3,2579.1,3.47704219]
[1751980598655,3.4646964,2579.2,2579.1,3.47704219]
[1751980598852,4.1529964,2579.2,2579.1,3.47704219]
[1751980599557,4.1529964,2579.2,2579.1,4.25239219]
[1751980600060,0.77532,2579.2,2579.1,4.25239219]
[1751980600362,0.77531,2579.3,2579.2,0.77528]
[1751980600554,0.77531,2579.3,2579.2,1.40778]
[1751980600756,0.77531,2579.3,2579.2,2.11588]
[1751980601060,1.46361,2579.3,2579.2,3.15548]
[1751980601449,1.46361,2579.3,2579.2,2.11588]
[1751980601964,0.77531,2579.3,2579.2,1.48338]
[1751980602256,1.46361,2579.3,2579.2,2.11588]
[1751980602456,0.77531,2579.3,2579.2,1.48338]
[1751980602758,0.77531,2579.3,2579.2,2.11588]
[1751980602958,1.46361,2579.3,2579.2,0.77528]
[1751980603155,1.46361,2579.3,2579.0,6.39995093]
[1751980603156,0.6883,2579.3,2579.0,6.39995093]
[1751980603359,3.4647264,2579.2,2579.1,0.77533]
[1751980603560,4.1530264,2579.2,2579.1,1.40783]
[1751980603762,0.77535,2579.1,2579.0,6.13570093]
[1751980603956,2.17445,2579.1,2579.0,0.77535]
[1751980604156,2.17445,2579.1,2579.0,1.40785]
[1751980607164,2.17445,2579.1,2579.0,0.6325]
[1751980607662,2.17445,2579.1,2579.0,1.40788]
[1751980609165,1.46365,2579.1,2579.0,2.44748]
[1751980610061,1.46365,2579.1,2579.0,1.6721]
[1751980611066,1.46365,2579.1,2579.0,0.6325]
[1751980611963,1.46345,2579.1,2579.0,0.77538]
[1751980612167,1.46345,2579.1,2579.0,1.43268]
[1751980612561,0.6881,2579.1,2578.9,3.98318]
[1751980612766,0.77538,2579.0,2578.9,3.98318]
[1751980612967,0.77538,2579.0,2578.9,1.43268]
[1751980613168,1.46348,2579.0,2578.9,1.43268]
[1751980614268,1.46348,2579.0,2578.9,0.6573]
[1751980614469,0.77544,2578.8,2578.7,4.63565093]
[1751980614763,0.77547,2578.7,2578.6,3.915]
[1751980614968,1.46357,2578.7,2578.6,3.915]
[1751980615268,1.46357,2578.7,2578.6,5.34778]
[1751980616467,1.46357,2578.7,2578.6,6.38848]
[1751980617365,1.46357,2578.7,2578.6,9.86103423]
[1751980618368,1.46357,2578.7,2578.6,8.82033423]
[1751980618568,1.46357,2578.7,2578.6,7.38755423]
[1751980618768,1.46357,2578.7,2578.6,8.16305423]
[1751980618965,5.78805498,2578.7,2578.5,0.7755]
[1751980619169,0.77552,2578.6,2578.5,4.24805423]
[1751980619470,1.46362,2578.6,2578.5,4.90535423]
[1751980620065,1.46362,2578.6,2578.5,1.43283]
[1751980620265,0.77553,2578.5,2578.4,4.94758423]
[1751980620468,0.77553,2578.5,2578.4,5.60488423]
[1751980620469,4.2136064,2578.5,2578.4,5.60488423]
[1751980621970,4.2136064,2578.5,2578.4,4.94758423]
[1751980622172,4.9017064,2578.5,2578.4,4.90538423]
[1751980622371,4.2136064,2578.5,2578.4,0.77553]
[1751980622571,4.9017064,2578.5,2578.4,1.43283]
[1751980623669,4.2136064,2578.5,2578.4,1.43283]
[1751980623871,4.9017064,2578.5,2578.4,1.43283]
[1751980625566,3.2078,2578.8,2578.4,1.698]
[1751980625772,0.77549,2578.7,2578.6,0.77547]
[1751980626071,1.46359,2578.7,2578.6,1.43277]
[1751980626261,0.77549,2578.7,2578.6,2.16937]
[1751980626462,0.77545,2578.8,2578.6,3.21007]
[1751980626670,60.99718,2579.1,2578.7,6.3260364]
[1751980626671,113.05716,2579.1,2578.7,6.3260364]
[1751980626872,113.05716,2579.1,2579.0,0.77538]
[1751980627169,109.84936,2579.1,2579.0,0.77538]
[1751980628672,53.99836,2579.1,2579.0,0.77538]
[1751980630075,53.99836,2579.1,2579.0,1.43268]
[1751980630473,56.6877364,2579.1,2579.0,1.43268]
[1751980630973,0.7753,2579.3,2579.2,0.77529]
[1751980631175,1.4634,2579.3,2579.2,0.77529]
[1751980631871,1.4634,2579.3,2579.2,1.43259]
[1751980632072,0.7753,2579.3,2579.2,0.77529]
[1751980632473,0.6881,2579.3,2579.2,1.43259]
[1751980632670,0.77529,2579.3,2579.2,0.77529]
[1751980632874,0.77529,2579.3,2579.2,2.47329]
[1751980633068,1.46339,2579.3,2579.2,2.47329]
[1751980633670,1.46339,2579.3,2579.2,1.43259]
[1751980633970,1.46339,2579.3,2579.2,2.47329]
[1751980634369,1.46339,2579.3,2579.2,1.43259]
[1751980637076,0.6881,2579.3,2579.2,1.43259]
[1751980637575,0.6881,2579.3,2579.2,2.47329]
[1751980637876,0.6881,2579.3,2579.2,1.43259]
[1751980638472,1.46339,2579.3,2579.2,1.43259]
[1751980641980,0.77529,2579.3,2579.2,0.77529]
[1751980642179,1.47149,2579.3,2579.2,1.46489]
[1751980642479,0.77529,2579.3,2579.2,1.46489]
[1751980642678,1.47149,2579.3,2579.2,1.46489]
[1751980642878,0.77529,2579.3,2579.2,1.46489]
[1751980643079,1.47149,2579.3,2579.2,1.46489]
[1751980649484,0.6962,2579.3,2579.2,1.46489]
[1751980651983,30.0616364,2579.4,2579.3,0.77529]
[1751980652286,30.7578364,2579.4,2579.3,0.77529]
[1751980652478,30.7578364,2579.4,2579.3,1.46489]
[1751980652678,30.7578364,2579.4,2579.3,0.77529]
[1751980653279,29.9825764,2579.4,2579.3,1.46489]
[1751980654384,30.7578364,2579.4,2579.3,1.46489]
[1751980654580,29.9825764,2579.4,2579.3,1.46489]
[1751980655784,30.7578364,2579.4,2579.3,1.46489]
[1751980658086,29.9825764,2579.4,2579.3,1.46489]
[1751980658587,29.2863764,2579.4,2579.3,1.46489]
[1751980659393,29.9825764,2579.4,2579.3,4.93744423]
[1751980659887,30.7578364,2579.4,2579.3,4.93744423]
[1751980660187,32.19937964,2579.4,2579.3,4.93744423]
[1751980660882,33.21777964,2579.4,2579.3,4.16215423]
[1751980661082,33.21777964,2579.4,2579.3,3.47255423]
[1751980661283,34.49327964,2579.4,2579.3,3.47255423]
[1751980661685,0.77529,2579.3,2579.2,3.47255423]
[1751980661880,0.77532,2579.2,2579.1,0.77534]
[1751980662184,0.77535,2579.1,2579.0,5.41101093]
[1751980662387,30.0557064,2579.2,2579.1,0.77535]
[1751980662784,30.0557064,2579.2,2579.0,6.10061093]
[1751980662785,1.47155,2579.1,2579.0,6.10061093]
[1751980662981,1.47155,2579.1,2579.0,1.46496]
[1751980663184,0.6962,2579.1,2579.0,0.77536]
[1751980663488,0.6962,2579.1,2579.0,4.25654049]
[1751980663693,1.47155,2579.1,2579.0,3.48118049]
[1751980663887,2.1375976,2579.1,2579.0,4.25656049]
[1751980664188,2.1375976,2579.1,2579.0,4.94616049]
[1751980664189,0.6962,2579.1,2579.0,4.94616049]
[1751980664387,1.47155,2579.1,2579.0,4.94616049]
[1751980664590,1.47155,2579.1,2579.0,4.25656049]
[1751980664788,1.47155,2579.1,2579.0,3.48118049]
[1751980665086,1.47155,2579.1,2579.0,4.17078049]
[1751980665288,1.47155,2579.1,2579.0,0.6896]
[1751980665484,0.77538,2579.0,2578.9,3.48118049]
[1751980665792,0.77541,2578.9,2578.8,3.48118049]
[1751980665984,4.1609864,2578.9,2578.8,3.48118049]
[1751980666589,4.1609864,2578.9,2578.8,4.17078049]
[1751980666790,4.1609864,2578.9,2578.8,3.48118049]
[1751980666989,5.1793864,2578.9,2578.8,3.48118049]
[1751980667190,0.77544,2578.8,2578.7,4.25664049]
[1751980667386,28.06264,2578.8,2578.7,4.94624049]
[1751980668692,26.591,2578.8,2578.7,4.94624049]
[1751980668892,0.77529,2579.3,2578.8,1.93861]
[1751980669191,26.591,2579.2,2579.1,0.77535]
[1751980669396,27.2872,2579.2,2579.1,0.77535]
[1751980672087,27.2721,2579.2,2579.1,1.45435]
[1751980672288,27.36632,2579.2,2579.0,0.77535]
[1751980672590,2.6893764,2579.1,2579.0,0.77535]
[1751980672788,3.3704764,2579.1,2579.0,0.77535]
[1751980672981,4.1458264,2579.1,2579.0,0.77535]
[1751980673692,4.1458264,2579.1,2579.0,1.45435]
[1751980673894,3.3704764,2579.1,2579.0,0.77535]
[1751980674087,4.1458264,2579.1,2579.0,0.77535]
[1751980674287,0.6811,2579.1,2579.0,1.45435]
[1751980674487,3.3704764,2579.1,2579.0,1.45435]
[1751980676496,4.0637764,2579.1,2579.0,1.45435]
[1751980677793,4.8391264,2579.1,2579.0,1.45435]
[1751980678696,4.0637764,2579.1,2579.0,1.45435]
[1751980678996,4.8391264,2579.1,2579.0,1.45435]
[1751980679197,4.8391264,2579.1,2579.0,0.77535]
[1751980680399,1.3744,2579.1,2579.0,1.45435]
[1751980680595,2.14975,2579.1,2579.0,1.45435]
[1751980680790,1.3744,2579.1,2579.0,1.45435]
[1751980680994,2.14975,2579.1,2579.0,1.45435]
[1751980681196,1.3744,2579.1,2579.0,1.45435]
[1751980681695,2.14975,2579.1,2579.0,1.45435]
[1751980682200,0.6933,2579.1,2579.0,1.45435]
[1751980682396,3.4646964,2579.2,2579.1,0.77535]
[1751980682698,30.71755447,2579.2,2579.1,0.77535]
[1751980682893,1.44017807,2579.2,2579.1,2.49275]
[1751980683095,3.4881606,2579.8,2579.1,6.7174]
[1751980683293,3.4881606,2579.9,2579.8,0.77514]
[1751980683496,6.6959606,2580.0,2579.9,0.77511]
[1751980683698,3.2078,2580.0,2579.9,1.45411]
[1751980683903,3.2078,2580.0,2579.9,3.76351]
[1751980684201,3.2078,2580.0,2579.9,1.45411]
[1751980684503,3.8889,2580.0,2579.9,1.45411]
[1751980685393,4.66398,2580.0,2579.9,0.679]
[1751980685601,4.66398,2580.0,2579.9,0.77511]
[1751980685900,4.66398,2580.0,2579.6,3.47688106]
[1751980685901,4.66398,2580.0,2579.8,0.77512]
[1751980686101,29.2733764,2579.9,2579.8,0.77512]
[1751980686400,30.7295864,2579.9,2579.8,1.45412]
[1751980686902,30.7295864,2579.9,2579.8,0.679]
[1751980687102,30.7295864,2579.9,2579.7,1.47335]
[1751980687303,0.6478,2579.8,2579.7,1.47335]
[1751980687602,0.6478,2579.8,2579.7,2.15235]
[1751980687803,1.3289,2579.8,2579.7,2.15235]
[1751980688195,0.6478,2579.8,2579.7,2.15235]